Cogmind - Beta 16 @@@ ROGUE MODE // 2025.10.23 @ 20:51:52 Player: human Result: Destroyed by MF-QLI(R) with Subdweller Laser Performance ------------- Evolutions (0) 0 Regions Visited (2) 400 Robots Destroyed (34) 170 Value Destroyed (799) 799 Prototype IDs (13) 260 Alien Tech Used (0) 0 Bonus (0) 0 TOTAL SCORE: 1629 Bonus ------- None Cogmind --------- Core Integrity 0/250 Matter 288/300 Energy 250/250 System Corruption 0% Temperature Cool (6) Movement Treading (160) Location -10/Subcaves Parts ------- > --- POWER (1) -------- Ion Engine > --- PROPULSION (2) --- Improved Treads Improved Treads > --- UTILITY (2) ------ Large Storage Unit Seismic Detector > --- WEAPON (2) ------- Slug Cannon Slug Cannon > --- INVENTORY (15) --- Subdweller Power Source Improved Treads Improved Treads Arachnoskeleton Cooling System Medium Matter Pod (100) Makeshift Light Armor Plating Scrap Shield Riot Gun Subdweller Beam Cannon Heavy Assault Rifle Grenade Launcher Peak State ------------ > --- POWER ------------ Ion Engine > --- PROPULSION ------- Improved Treads Improved Treads > --- UTILITY ---------- Large Storage Unit Seismic Detector > --- WEAPON ----------- Slug Cannon Slug Cannon > --- INVENTORY -------- Subdweller Power Source Improved Treads Improved Treads Arachnoskeleton Cooling System Cooling System Medium Matter Pod Makeshift Light Armor Plating Riot Gun Subdweller Beam Cannon Heavy Assault Rifle Grenade Launcher Mining Laser [Rating: 19] Favorites ----------- Power Ion Engine Engine Ion Engine Propulsion Improved Treads Treads Improved Treads Wheel Wheel Utility Large Storage Unit Device Seismic Detector Storage Large Storage Unit Weapon Slug Cannon Energy Gun Improved EM Shotgun Energy Cannon Beam Cannon Ballistic Gun Light Assault Rifle Ballistic Cannon Slug Cannon Launcher Grenade Launcher Special Weapon Mining Laser Build | -11 -10 -10 ------- Run | Yrd Mat Sub Slots Evolved . | . . . Power . | . . . Propulsion . | . . . Utility . | . . . Weapon . | . . . Parts Attached 29 | 4 17 8 Power 3 | 1 1 1 Engine 3 | 1 1 1 Core . | . . . Reactor . | . . . Propulsion 8 | 2 6 . Treads 6 | . 6 . Leg . | . . . Wheel 2 | 2 . . Hover . | . . . Flight . | . . . Utility 5 | 1 3 1 Device 3 | . 2 1 Storage 2 | 1 1 . Processor . | . . . Hackware . | . . . Protection . | . . . Artifact . | . . . Weapon 13 | . 7 6 Energy Gun 3 | . 2 1 Energy Cannon 3 | . 2 1 Ballistic Gun 3 | . 2 1 Ballistic Cannon 2 | . . 2 Launcher 1 | . 1 . Special Weapon 1 | . . 1 Impact Weapon . | . . . Slashing Weapon . | . . . Piercing Weapon . | . . . Special Melee Weapon . | . . . Unidentified Prototypes 1 | . 1 . Parts Lost 5 | . 4 1 Power 2 | . 2 . Propulsion 2 | . 2 . Utility . | . . . Weapon 1 | . . 1 Highest Loss Streak 2 | . 2 1 To Critical Strikes . | . . . Average Backups 11 | 3 8 13 Power . | . . 1 Propulsion 2 | 1 2 2 Utility 2 | . 1 3 Weapon 5 | 1 4 6 Tool/Special . | . . . Unused Backups 22 | . 8 14 Power 1 | . . 1 Propulsion 7 | . 4 3 Utility 4 | . . 4 Weapon 10 | . 4 6 Tool/Special . | . . . Average Slot Usage (%) 95 | . 90 99 Engine 11 | . 9 14 Treads 26 | . 25 28 Device 12 | . 11 14 Storage 14 | . 14 14 Energy Gun 7 | . 14 2 Energy Cannon 2 | . 5 . Ballistic Gun 4 | . 6 3 Ballistic Cannon 12 | . . 21 Peak Build Rating 19 | 4 16 19 Average Rating 14 | 3 10 17 On Entrance 6 | . 4 16 Avg Prop Armor Cover (%) . | . . . Naked Turns . | . . . Heaviest Build 40 | 8 29 40 Greatest Support 46 | 20 46 46 Greatest Overweight (x) . | . . . Average Overweight (x) . | . . . Largest Inventory Capacity 15 | 8 15 15 Average Capacity 12 | 6 10 15 Most Carried 15 | 6 15 15 Average Carried 12 | 3 8 14 Final Capacity 15 | 8 15 15 Final Carried 15 | 6 15 15 Class Distribution -------------------- 100% | Mutant Dominant Class ---------------- Mutant | -10/Materials Mutant | -10/Subcaves Resources | -11 -10 -10 ----------- Run | Yrd Mat Sub Matter Collected 909 | 192 374 343 Remotely . | . . . Salvage Created 1015 | . 801 214 Parts 64 | . 50 14 Haulers Intercepted 1 | . 1 . Recyclers Shooed . | . . . Parts Field Recycled . | . . . Retrieved Matter . | . . . Parts Self-Destructed 8 | . . 8 Prevented . | . . . Parts Restored . | . . . Kills | -11 -10 -10 ------- Run | Yrd Mat Sub Combat Hostiles Destroyed 27 | . 21 6 Guns 15 | . 15 . Cannons 11 | . 5 6 AOE 1 | . 1 . Classes Destroyed 7 | . 6 1 Worker 1 | . 1 . Builder 2 | . 2 . Hauler 1 | . 1 . Watcher 3 | . 3 . Swarmer 9 | . 9 . Grunt 12 | . 12 . Subdweller 6 | . . 6 Best Kill Streak 5 | . 5 1 Combat Bots Only 3 | . 3 1 Max Kills in Single Turn 2 | . 2 1 Gunslinging 1 | . 1 . Exploded 1 | . 1 . Melee . | . . . Uniques/NPCs Destroyed . | . . . Combat | -11 -10 -10 -------- Run | Yrd Mat Sub Hostile Shots Fired 163 | . 131 32 Missed 49 | . 36 13 Hits 114 | . 95 19 Projectile 114 | . 95 19 Critical Strikes 1 | . 1 . Damage Taken 1361 | . 950 411 Core 267 | . 186 81 Absorbed by Shields . | . . . Core Remaining (%) 100 | 100 . . Volleys Fired 104 | . 65 39 Largest 2 | . 2 2 Hottest 120 | . 120 100 Shots Fired 184 | . 130 54 Gun 104 | . 92 12 Cannon 70 | . 34 36 Launcher 4 | . 4 . Special 6 | . . 6 Kinetic 90 | . 46 44 Thermal 40 | . 34 6 Explosive 4 | . 4 . Electromagnetic 50 | . 46 4 Robot Hit Streak 11 | . 7 11 Robot Miss Streak 8 | . 8 3 Penetration Max . | . . . Secondary Targets 1 | . 1 . Max Gunslinging Chain 1 | . 1 . Shots Hit Robots 93 | . 71 22 Core Hits 53 | . 45 8 Critical Kills 2 | . . 2 Critical Parts Destroyed . | . . . Critical Strikes 4 | . . 4 Destroy 4 | . . 4 Melee Attacks . | . . . Impact . | . . . Slashing . | . . . Piercing . | . . . Sneak Attacks . | . . . Combat Hostiles . | . . . Follow-up Attacks . | . . . Damage Inflicted 1895 | . 1343 552 Guns 958 | . 791 167 Cannons 595 | . 210 385 Explosions 342 | . 342 . Melee . | . . . Ramming . | . . . Kinetic 682 | . 200 482 Thermal 261 | . 261 . Explosive 291 | . 291 . Electromagnetic 661 | . 591 70 Impact . | . . . Slashing . | . . . Piercing . | . . . Highest Corruption . | . . . Average Corruption . | . . . Corruption Purged . | . . . Corruption Blocked . | . . . Overload Shots . | . . . Overflow Damage 13 | . 13 . Projectiles . | . . . Explosions 13 | . 13 . Melee . | . . . Knockbacks 3 | . . 3 Impact . | . . . Kinetic 3 | . . 3 Secondary . | . . . Self-Inflicted Damage 70 | . 70 . Shots 4 | . 4 . Rammed . | . . . Targets Rammed . | . . . Kicked . | . . . Crushed . | . . . Highest Temperature 300 | . 300 . Average Temperature 75 | . 75 . Received Heat Transfer 312 | . 225 87 Siege Activations . | . . . Martial Activations . | . . . Shielding Activations . | . . . Robots Disrupted . | . . . Combat Hostiles . | . . . Robots Corrupted . | . . . Combat Hostiles . | . . . Parts Fried 1 | . 1 . Impact Corruptions . | . . . Robots Melted . | . . . Combat Hostiles . | . . . Parts Melted . | . . . Heat Transferred 544 | . 544 . Parts Sabotaged . | . . . Parts Stolen . | . . . Parts Stripped . | . . . Power Chain Reactions 4 | . 4 . Alert | -11 -10 -10 ------- Run | Yrd Mat Sub Maximum Alert Level 1 | . 1 . Low Security (%) 86 | 100 85 . Level 1 13 | . 14 . Level 2 . | . . . Level 3 . | . . . Level 4 . | . . . Level 5 . | . . . High Security . | . . . Max Security . | . . . Peak Influence 258 | . 258 . Initial . | . . . Average 138 | . 143 . Influence Increases 763 | . 763 . Destroy 0b10 Robot/C 420 | . 420 . Destroy 0b10 Robot/NC 35 | . 35 . Destroy Leader 98 | . 98 . Successful Hack 24 | . 24 . Select Force Hacks 60 | . 60 . Destroy Structure 36 | . 36 . Lose Combat Pursuer 90 | . 90 . Influence Decreases 763 | . 522 241 Entered New Map 117 | . . 117 Time Decay 596 | . 482 114 Lost Part 50 | . 40 10 Squads Dispatched 7 | . 7 . Investigation 4 | . 4 . Extermination . | . . . Reinforcement 3 | . 3 . Assault . | . . . Garrison . | . . . Intercept . | . . . Searches Triggered . | . . . Construction Impeded . | . . . Haulers Reinforced . | . . . Active Scanning Responses . | . . . Cargo Convoy Interrupts . | . . . Stealth | -11 -10 -10 --------- Run | Yrd Mat Sub Distress Signals 1 | . 1 . Communications Jammed . | . . . Distress Signals . | . . . Times Spotted 50 | . 41 9 Peak Tracking Total 5 | . 5 2 Tactical Retreats 6 | . 4 2 Traps | -11 -10 -10 ------- Run | Yrd Mat Sub Traps Triggered 2 | . 2 . Indirectly . | . . . Trap Hack Attempts . | . . . Triggered . | . . . Disarmed . | . . . Reprogrammed . | . . . Reused . | . . . Traps Extracted . | . . . Installed . | . . . Triggered . | . . . Machines | -11 -10 -10 ---------- Run | Yrd Mat Sub Machines Disabled 1 | . . 1 Max in Single Turn 1 | . . 1 Machines Repaired . | . . . Machines Dismantled . | . . . Machines Sabotaged . | . . . Overloaded Fab Kills . | . . . Hacking | -11 -10 -10 --------- Run | Yrd Mat Sub Machines Accessed 9 | . 8 1 Terminals 5 | . 5 . Fabricators . | . . . Repair Stations 1 | . 1 . Recycling Units 2 | . 2 . Scanalyzers . | . . . Garrison Access . | . . . Total Hacks 31 | . 22 9 Successful 19 | . 10 9 Failed 12 | . 12 . Catastrophic . | . . . Database Lockouts . | . . . Manual 18 | . 18 . Terminals 13 | . 13 . Fabricators . | . . . Repair Stations 4 | . 4 . Recycling Units 5 | . 5 . Scanalyzers . | . . . Garrison Access . | . . . Terminal Hacks 9 | . . 9 Record 8 | . . 8 Proto ID Catalog 1 | . . 1 Fabricator Hacks . | . . . Repair Station Hacks 1 | . 1 . Refit 1 | . 1 . Recycling Unit Hacks . | . . . Scanalyzer . | . . . Garrison Access Hacks . | . . . Unauthorized Hacks 9 | . 9 . Terminals 6 | . 6 . Botnet 1 | . 1 . Operators 1 | . 1 . Skim 4 | . 4 . Fabricators . | . . . Repair Stations . | . . . Recycling Units 3 | . 3 . Recyclers 1 | . 1 . Tunnel 2 | . 2 . Scanalyzers . | . . . Garrison Access . | . . . Data Cores Recovered . | . . . Used . | . . . Hacking Detections 7 | . 7 . Full Trace Events 1 | . 1 . Feedback Events . | . . . Feedback Blocked . | . . . Robot Schematics Acquired . | . . . Robots Built . | . . . Authchips . | . . . Time . | . . . Total Robot Build Rating . | . . . Part Schematics Acquired . | . . . Parts Built . | . . . Authchips . | . . . Time . | . . . Total Part Build Rating . | . . . Part Studies Acquired . | . . . Parts Repaired . | . . . Time . | . . . Parts Recycled . | . . . Recycled Matter . | . . . Retrieved Matter . | . . . Retrieved Components . | . . . Parts Scanalyzed . | . . . Part Schematics Acquired . | . . . Parts Damaged . | . . . Bothacking | -11 -10 -10 ------------ Run | Yrd Mat Sub Used RIF Installer . | . . . Robots Hacked . | . . . Non-combat . | . . . Combat . | . . . Robot Hacks Applied . | . . . Relay Couplers Released . | . . . Fabnet Peak Effective % . | . . . Robots Rewired . | . . . Allies Hacked . | . . . Hacks Repelled . | . . . Allies | -11 -10 -10 -------- Run | Yrd Mat Sub Total Allies . | . . . Largest Group . | . . . Highest-Rated Group . | . . . Highest-Rated Ally . | . . . Total Orders . | . . . Ally Attacks . | . . . Total Damage . | . . . Kills . | . . . Allies Corrupted . | . . . Allies Melted . | . . . Intel | -11 -10 -10 ------- Run | Yrd Mat Sub Active Infowar (turns) 1514 | . . 1514 Seismic 1514 | . . 1514 Robot Analysis Total . | . . . Derelict Logs Recovered . | . . . Drone Launches . | . . . Drone Recoveries . | . . . Exploration | -11 -10 -10 ------------- Run | Yrd Mat Sub Turns Passed 3101 | 47 1277 1777 Spaces Moved 1691 | 45 621 1025 Core 2 | 2 . . Treads 1606 | . 581 1025 Legs . | . . . Wheels 83 | 43 40 . Hover . | . . . Flight . | . . . Fastest Speed 50 | 50 80 160 Average Speed 155 | 78 154 160 Slowest Speed 160 | 80 160 160 Overloaded Moves . | . . . Propulsion Burnouts . | . . . Robots Hopped . | . . . Potential Cave-ins . | . . . Cave-ins Triggered . | . . . Exploration Rate (%) 48 | 3 96 46 Regions Visited 2 Branch Regions 1 Pre-discovered Areas 2 | . 2 . Known Exits Taken . | . . . Unknown Exits Taken 2 | 1 1 . Scrap Searched 2 | . . 2 Spaces Dug 3 | . . 3 Terrain Destroyed 47 | . 35 12 Melee . | . . . Projectile 12 | . . 12 AOE 35 | . 35 . Terrain Rammed . | . . . Walls Destroyed . | . . . Machines Disabled . | . . . Actions | -11 -10 -10 --------- Run | Yrd Mat Sub Total 1974 | 54 822 1098 Wait 81 | . 77 4 Move 1689 | 44 620 1025 Hop . | . . . Pick Up 37 | 6 23 8 Fast Attach 13 | 4 7 2 Attach 6 | . 5 1 Detach 1 | . . 1 Swap 13 | . 7 6 Drop 30 | . 18 12 Fire 104 | . 65 39 Melee . | . . . Ram . | . . . Kick . | . . . Crush . | . . . Escape Stasis . | . . . Rewire . | . . . Trap . | . . . Miscellaneous . | . . . Route ------- -11/Scrapyard -10/Materials (discovered 5 exits: [*Mat x3] / [*Min] / *Sub) -10/Subcaves (discovered 2 exits: [*Mat x2]) History --------- Turn | Location | Event 11 | -11/Scrapyard | Discovered new exit (range 15) 48 | -11/Scrapyard | Entered Materials 300 | -10/Materials | Build established: Mutant 396 | -10/Materials | Discovered new exit (range 16) 504 | -10/Materials | Discovered new exit (range 9) 518 | -10/Materials | Core integrity fell below 50% 693 | -10/Materials | Discovered new exit (range 4) 791 | -10/Materials | Discovered new exit (range 13) 1316 | -10/Materials | Discovered new exit (range 2) 1325 | -10/Materials | Entered Subcaves 1326 | -10/Subcaves | Shifting Twisted Machinery released Slug Cannon 1329 | -10/Subcaves | Shifting Twisted Machinery released Riot Gun 1536 | -10/Subcaves | Core integrity fell below 20% 1926 | -10/Subcaves | Discovered new exit (range 10) 1944 | -10/Subcaves | Shifting Twisted Machinery released Sub. Beam Cannon 1946 | -10/Subcaves | Shifting Twisted Machinery released Slug Cannon 2133 | -10/Subcaves | Visited 4L-MR0's lab 2153 | -10/Subcaves | Found Arachnoskeleton 2939 | -10/Subcaves | Discovered new exit (range 7) 3102 | -10/Subcaves | Destroyed by MF-QLI(R) with Subdweller Laser Last Messages --------------- 02148_ Testing Chamber breached. 02153_ Acquired Arachnoskeleton. 02160_ 4L-MR0 mumbles: "Who knows where that last prototype ended up, probably tossed aside somewhere as if it were useless junk..." 02362_ Acquired 6 matter. 02418_ Subatomizers dissect the Disposable Heat Sink. 02500_ XA-QB9(R) knocked back. 02508_ XA-QB9(R) destroyed. 02511_ Acquired 2 matter. 02515_ Acquired 27 matter. 02518_ Acquired 7 matter. 02521_ Dropped Cooling System. 02522_ Dropped Mining Laser. 02522_ Acquired Scrap Shield. 02580_ Subatomizers dissect the Sub. Laser. 02833_ Acquired 48 matter. 02939_ EXIT=FOUND 03099_ MF-QLI(R) suffers critical hit (Destroy). Map ----- +----------------------------------------------------+ | ?????????????????????????????????????????????????? | | ?????????????????????????????????????????????????? | | ?????????????????????????????????????????????????? | | ?????????????????????????????????????????????????? | | ?????????????????????????????????????????????????? | | ?????????????????????????????????????????????????? | | ?????????????????????????????????????????????????? | | ?????????????????????????????????????????????????? | | ?????????????????????????????????????????????????? | | ?????????????????????????????????????????????????? | | ?????????????????????????????????????????????????? | | ??????????????????????????###????????????????????? | | ????????????????????????## #???????????###??????? | | ??????????????????????### #??????????## ##?????? | | ??????????????????????#^ ##?????????# ##????? | | ??????????????????????# ^ #????????## ##???? | | ?????????????????###??## #####?????# ##??? | | ?????????????????# #?## #### ##?#### ##?? | | ????????????????## ^ ## ### ### ## < #?? | | ????????????????#" ## # #?? | | ????????????????##""" ^ #### ## # ## ### #?? | | ?????????????????#""" #### ##### ## ##? | | ???????????? ???## ; #" # ## ### #? | | ???????????? "????# ;;# ;;;# #?# #? | | ????????##"""" ???# % % ;# ##### ##? | | ???????##""""" #??# @ ;## # ## ##? | | ?????### #?## ;# #? | | ????## #?## ;# ;# #? | | ???## ? ## % #### ### ##### ##? | | ??## ??? ; #?# #?# ##???###?? | | ?? ##### R #??# #### ###????????? | | ??? ### #??## #?######??????????? | | ?? ?#?# ### ###??## ####???????????????? | | ## ? ##?# % # # ##????# ##??????????????? | | ? ### ! #?????## #??????????????? | | ? # %# ####??????# #??????????????? | | ? ?## !###?????#??# ### ##??????????????? | | ? #???## "##???? ###### #??????????????? | | # #?????# ##??? #### #??????????????? | | #??????# #??? ## ##??????????????? | | #??????# ###??? ## #???????????????? | | #??????# ##????# #?# #???????????????? | | # #??????# #????## #??# #???????????????? | | ??##??????# #????# #??# ##??????????????? | | #?????????## ####### #### #??????????????? | | #??????????# ## ## ## #??????????????? | | #?????????## ## ## ##??????????????? | | ######????# " #####????????????? | | ##???# " # #??????####### | | #???## " ##??#### # # | +----------------------------------------------------+ Best States ------------- Heat Dissipation 47 Energy Generation 10 Energy Capacity 250 Matter Stores 300 Matter Capacity 300 Sight Range 16 Terrain Scan Density 10 Evasion (%) 44 Recoil Reduction 2 Item Schematics ----------------- None Robot Schematics ------------------ None Fabricated ------------ Nothing Repaired ---------- Nothing Studied --------- None Alien Tech Used ----------------- None Achievements -------------- Fitting Room Mistaken Identity Challenges ------------ None Game ------ Seed ComponentMinesnifferSheargun Manual? 0 Play Time 00:28:56 Cumulative 333.4 hours Start 2025.10.23 @ 20:20:06 End 2025.10.23 @ 20:51:52 Sessions 1 Manual Loads 0 Difficulty Rogue Special Mode None Game No. 256 Rogue 256 Adventurer 0 Explorer 0 Win Type - Total 4 Types 3/0/1/0/0/0/0/0/0/0 Lore% 80 Gallery% 68 Achievement% 36 Wizard Run 0 Options --------- Layout 1 ASCII 0 Keyboard 0 Movement Mouse Keybinds 0 Fullscreen 1 Font 24/Smallcaps Map View 50x35 Zoom Use 0% Tactical HUD 1 Map Filters NONE Filters NONE Steam 1 RUN: 8ea46fdf-7f7c-44f6-87b3-4b54b25868a2